[Event "*** Qualifier 1: Titled Tuesday 3|2 Blitz"]
[Site "Chess.com"]
[Date "2017.04.04"]
[Round "2"]
[White "GianmarcoVaR"]
[Black "Kawhi_Leonard2"]
[Result "1-0"]
[WhiteElo "2422"]
[BlackElo "2216"]
[TimeControl "180+2"]
[EndTime "13:23:23 PDT"]
[Termination "GianmarcoVaR won on time"]

1. d4 {[%clk 0:03:02]} 1... Nf6 {[%clk 0:03:00.3]} 2. c4 {[%clk 0:03:01.8]} 2...
c5 {[%clk 0:03:01.3]} 3. d5 {[%clk 0:03:02.7]} 3... e6 {[%clk 0:03:03.2]} 4. Nc3
{[%clk 0:03:03.8]} 4... exd5 {[%clk 0:03:05.1]} 5. cxd5 {[%clk 0:03:05]} 5... d6
{[%clk 0:03:07]} 6. e4 {[%clk 0:03:05.9]} 6... g6 {[%clk 0:03:08.5]} 7. Nf3
{[%clk 0:03:05.9]} 7... Bg7 {[%clk 0:03:09.4]} 8. Bb5+ {[%clk 0:03:06.6]} 8...
Nbd7 {[%clk 0:03:09.5]} 9. Bf4 {[%clk 0:02:50]} 9... Qe7 {[%clk 0:02:47.7]} 10.
O-O {[%clk 0:02:23.7]} 10... O-O {[%clk 0:02:31.1]} 11. Re1 {[%clk 0:02:20.9]}
11... Nh5 {[%clk 0:02:05.6]} 12. Bg5 {[%clk 0:02:21.3]} 12... Bf6 {[%clk
0:02:06.7]} 13. Bxf6 {[%clk 0:02:14.4]} 13... Qxf6 {[%clk 0:02:07]} 14. a4
{[%clk 0:02:02.6]} 14... Ne5 {[%clk 0:01:52.3]} 15. Nxe5 {[%clk 0:01:46.2]}
15... Qxe5 {[%clk 0:01:53.3]} 16. g3 {[%clk 0:01:47.4]} 16... a6 {[%clk
0:01:40.6]} 17. Be2 {[%clk 0:01:30.9]} 17... Nf6 {[%clk 0:01:34.7]} 18. f4
{[%clk 0:01:27.2]} 18... Qd4+ {[%clk 0:01:33.9]} 19. Kg2 {[%clk 0:01:28.3]}
19... Re8 {[%clk 0:01:28.8]} 20. Bf3 {[%clk 0:01:28.6]} 20... h5 {[%clk
0:00:32.2]} 21. h3 {[%clk 0:01:18.2]} 21... Bd7 {[%clk 0:00:30.9]} 22. e5 {[%clk
0:01:03]} 22... dxe5 {[%clk 0:00:29.9]} 23. fxe5 {[%clk 0:01:04.9]} 23... Rxe5
{[%clk 0:00:20.7]} 24. Qxd4 {[%clk 0:01:05.1]} 24... cxd4 {[%clk 0:00:22]} 25.
Rxe5 {[%clk 0:01:05.4]} 25... dxc3 {[%clk 0:00:23.9]} 26. bxc3 {[%clk
0:01:06.8]} 26... Rc8 {[%clk 0:00:25.5]} 27. Re3 {[%clk 0:00:54]} 27... Rc5
{[%clk 0:00:26.2]} 28. d6 {[%clk 0:00:54.2]} 28... b6 {[%clk 0:00:19.9]} 29. Rb1
{[%clk 0:00:48.7]} 29... b5 {[%clk 0:00:20.7]} 30. a5 {[%clk 0:00:47.7]} 30...
Kf8 {[%clk 0:00:10.6]} 31. Bb7 {[%clk 0:00:44.1]} 31... Bc6+ {[%clk 0:00:10.4]}
32. Bxc6 {[%clk 0:00:44.2]} 32... Rxc6 {[%clk 0:00:12]} 33. Rd1 {[%clk
0:00:44.9]} 1-0

[Event "*** Qualifier 1: Titled Tuesday 3|2 Blitz"]
[Site "Chess.com"]
[Date "2017.04.04"]
[Round "2"]
[White "AkshatChandra"]
[Black "Iball95"]
[Result "1-0"]
[WhiteElo "2645"]
[BlackElo "2475"]
[TimeControl "180+2"]
[EndTime "13:23:27 PDT"]
[Termination "AkshatChandra won by checkmate"]

1. e4 {[%clk 0:03:01.9]} 1... c6 {[%clk 0:03:01.2]} 2. d4 {[%clk 0:02:58.4]}
2... d5 {[%clk 0:03:02.6]} 3. e5 {[%clk 0:02:58.6]} 3... Bf5 {[%clk 0:03:02.4]}
4. h4 {[%clk 0:02:59]} 4... h5 {[%clk 0:03:02.9]} 5. c4 {[%clk 0:03:00]} 5... e6
{[%clk 0:03:02.4]} 6. Nc3 {[%clk 0:03:01.6]} 6... Nd7 {[%clk 0:03:01.8]} 7. cxd5
{[%clk 0:03:01.1]} 7... cxd5 {[%clk 0:02:54.9]} 8. Bd3 {[%clk 0:02:59.9]} 8...
Ne7 {[%clk 0:02:50.5]} 9. Nb5 {[%clk 0:02:43.4]} 9... Nc6 {[%clk 0:02:21.6]} 10.
Bxf5 {[%clk 0:02:43.1]} 10... exf5 {[%clk 0:02:23.5]} 11. Ne2 {[%clk 0:02:35.3]}
11... Bb4+ {[%clk 0:02:14.3]} 12. Bd2 {[%clk 0:02:33.6]} 12... Be7 {[%clk
0:01:12.4]} 13. g3 {[%clk 0:02:25.9]} 13... a6 {[%clk 0:01:07.3]} 14. Nbc3
{[%clk 0:02:26.9]} 14... Nb6 {[%clk 0:01:08.4]} 15. O-O {[%clk 0:02:16.6]} 15...
g6 {[%clk 0:01:06.7]} 16. b3 {[%clk 0:02:12.7]} 16... Qd7 {[%clk 0:01:01.9]} 17.
Be3 {[%clk 0:02:09.3]} 17... Nd8 {[%clk 0:01:03.1]} 18. Nf4 {[%clk 0:02:00.2]}
18... Ne6 {[%clk 0:01:03.5]} 19. Nce2 {[%clk 0:02:01.8]} 19... O-O {[%clk
0:01:01.6]} 20. Qd2 {[%clk 0:01:58.9]} 20... a5 {[%clk 0:00:57.1]} 21. Nxe6
{[%clk 0:01:55.2]} 21... fxe6 {[%clk 0:00:49.8]} 22. Bg5 {[%clk 0:01:52.9]}
22... Rfc8 {[%clk 0:00:44.2]} 23. Rfc1 {[%clk 0:01:49.8]} 23... a4 {[%clk
0:00:35.8]} 24. Bxe7 {[%clk 0:01:28.4]} 24... Qxe7 {[%clk 0:00:37.7]} 25. Qh6
{[%clk 0:01:29.7]} 25... Qg7 {[%clk 0:00:31]} 26. Qg5 {[%clk 0:01:27.5]} 26...
Re8 {[%clk 0:00:21.6]} 27. Nf4 {[%clk 0:01:25.6]} 27... Kh7 {[%clk 0:00:21.1]}
28. Rab1 {[%clk 0:01:09.1]} 28... axb3 {[%clk 0:00:20.3]} 29. Rxb3 {[%clk
0:00:55.8]} 29... Nc4 {[%clk 0:00:19.4]} 30. Nxg6 {[%clk 0:00:50]} 30... Rxa2
{[%clk 0:00:11.7]} 31. Qxh5+ {[%clk 0:00:45.1]} 31... Kg8 {[%clk 0:00:12.6]} 32.
Rxb7 {[%clk 0:00:32.8]} 32... Qxb7 {[%clk 0:00:08.8]} 33. Qh8+ {[%clk
0:00:33.9]} 33... Kf7 {[%clk 0:00:10.3]} 34. Qh7# {[%clk 0:00:35.5]} 1-0

[Event "*** Qualifier 1: Titled Tuesday 3|2 Blitz"]
[Site "Chess.com"]
[Date "2017.04.04"]
[Round "2"]
[White "VerdeNotte"]
[Black "Rodalquilar"]
[Result "1-0"]
[WhiteElo "2586"]
[BlackElo "2564"]
[TimeControl "180+2"]
[EndTime "13:23:30 PDT"]
[Termination "VerdeNotte won by resignation"]

1. g3 {[%clk 0:03:02]} 1... d5 {[%clk 0:02:58.1]} 2. Nf3 {[%clk 0:03:00.7]} 2...
Nf6 {[%clk 0:02:58.7]} 3. Bg2 {[%clk 0:03:01.5]} 3... e6 {[%clk 0:03:00.2]} 4.
b3 {[%clk 0:03:01.7]} 4... Be7 {[%clk 0:03:00.8]} 5. Bb2 {[%clk 0:03:02.2]} 5...
O-O {[%clk 0:03:01.9]} 6. O-O {[%clk 0:03:02.7]} 6... a5 {[%clk 0:03:02.5]} 7.
d3 {[%clk 0:03:01.2]} 7... a4 {[%clk 0:03:02.7]} 8. Nbd2 {[%clk 0:03:02]} 8...
b6 {[%clk 0:02:52]} 9. e4 {[%clk 0:02:57]} 9... dxe4 {[%clk 0:02:47.9]} 10. dxe4
{[%clk 0:02:48.2]} 10... Bb7 {[%clk 0:02:48.5]} 11. Qe2 {[%clk 0:02:43.8]} 11...
a3 {[%clk 0:02:24.6]} 12. Be5 {[%clk 0:02:11.3]} 12... Nc6 {[%clk 0:02:06.4]}
13. Bf4 {[%clk 0:02:11.9]} 13... Nb4 {[%clk 0:01:48]} 14. Rfd1 {[%clk
0:01:58.4]} 14... Qc8 {[%clk 0:01:15.8]} 15. c3 {[%clk 0:01:57.6]} 15... Ba6
{[%clk 0:01:16.3]} 16. Nc4 {[%clk 0:01:56.8]} 16... Nc6 {[%clk 0:01:07.4]} 17.
Qc2 {[%clk 0:01:43.1]} 17... b5 {[%clk 0:00:53.1]} 18. Nce5 {[%clk 0:01:43.3]}
18... Nxe5 {[%clk 0:00:54.1]} 19. Nxe5 {[%clk 0:01:44.2]} 19... Bb7 {[%clk
0:00:55.5]} 20. Qe2 {[%clk 0:01:41.4]} 20... b4 {[%clk 0:00:43.8]} 21. cxb4
{[%clk 0:01:40.5]} 21... Bxb4 {[%clk 0:00:45.7]} 22. Rac1 {[%clk 0:01:39.1]}
22... Rd8 {[%clk 0:00:40]} 23. Rxd8+ {[%clk 0:01:38.4]} 23... Qxd8 {[%clk
0:00:40.8]} 24. Nxf7 {[%clk 0:01:39.6]} 24... Kxf7 {[%clk 0:00:30.9]} 25. Rxc7+
{[%clk 0:01:39.8]} 25... Qxc7 {[%clk 0:00:29.6]} 26. Bxc7 {[%clk 0:01:40.4]}
26... Rc8 {[%clk 0:00:31.5]} 27. Bf4 {[%clk 0:01:37.5]} 27... e5 {[%clk
0:00:27.1]} 28. Qb5 {[%clk 0:01:36.6]} 28... Rc7 {[%clk 0:00:12]} 29. Bxe5
{[%clk 0:01:24.2]} 29... Rc1+ {[%clk 0:00:10.9]} 30. Bf1 {[%clk 0:01:25.2]}
30... Bxe4 {[%clk 0:00:08.3]} 31. Bxf6 {[%clk 0:01:11]} 31... gxf6 {[%clk
0:00:06.2]} 32. Qxb4 {[%clk 0:01:09.7]} 32... Bd3 {[%clk 0:00:07]} 33. Qd2
{[%clk 0:01:04]} 33... Rxf1+ {[%clk 0:00:04.3]} 34. Kg2 {[%clk 0:01:05.1]} 34...
Ra1 {[%clk 0:00:05.9]} 35. Qxd3 {[%clk 0:01:05.7]} 35... Rxa2 {[%clk 0:00:07.5]}
36. b4 {[%clk 0:01:05.8]} 36... Ra1 {[%clk 0:00:07.7]} 37. Qc3 {[%clk
0:01:05.7]} 37... Ra2 {[%clk 0:00:05.9]} 38. Qb3+ {[%clk 0:01:06.7]} 1-0

[Event "*** Qualifier 1: Titled Tuesday 3|2 Blitz"]
[Site "Chess.com"]
[Date "2017.04.04"]
[Round "2"]
[White "stepanosinovsky"]
[Black "capatl"]
[Result "0-1"]
[WhiteElo "2188"]
[BlackElo "2351"]
[TimeControl "180+2"]
[EndTime "13:23:37 PDT"]
[Termination "capatl won on time"]

1. e4 {[%clk 0:03:02]} 1... c6 {[%clk 0:02:59.2]} 2. d3 {[%clk 0:02:58.2]} 2...
d5 {[%clk 0:02:55.1]} 3. Nd2 {[%clk 0:02:59.8]} 3... g6 {[%clk 0:02:52.7]} 4. g3
{[%clk 0:02:51.7]} 4... Bg7 {[%clk 0:02:43.7]} 5. Bg2 {[%clk 0:02:51.7]} 5...
dxe4 {[%clk 0:02:41.5]} 6. dxe4 {[%clk 0:02:50.4]} 6... Nd7 {[%clk 0:02:42.7]}
7. Ngf3 {[%clk 0:02:50]} 7... Qc7 {[%clk 0:02:36.7]} 8. O-O {[%clk 0:02:43.1]}
8... Ngf6 {[%clk 0:02:32.2]} 9. Nc4 {[%clk 0:02:21.3]} 9... Ng4 {[%clk 0:02:22]}
10. Bf4 {[%clk 0:02:06.8]} 10... e5 {[%clk 0:02:17.8]} 11. Nd6+ {[%clk
0:01:50.8]} 11... Ke7 {[%clk 0:02:17]} 12. Bg5+ {[%clk 0:01:06.1]} 12... f6
{[%clk 0:02:14.8]} 13. Nxc8+ {[%clk 0:01:05.2]} 13... Raxc8 {[%clk 0:02:13.3]}
14. Bd2 {[%clk 0:01:06.4]} 14... Nh6 {[%clk 0:01:57.8]} 15. Qe2 {[%clk 0:00:52]}
15... Nf7 {[%clk 0:01:44.6]} 16. h4 {[%clk 0:00:44.5]} 16... Rhd8 {[%clk
0:01:33.8]} 17. h5 {[%clk 0:00:44.9]} 17... Nd6 {[%clk 0:01:23.4]} 18. Nh4
{[%clk 0:00:39.7]} 18... g5 {[%clk 0:01:20.1]} 19. Qg4 {[%clk 0:00:38.3]} 19...
Nf8 {[%clk 0:01:12.2]} 20. f4 {[%clk 0:00:19.8]} 20... exf4 {[%clk 0:01:02.7]}
21. gxf4 {[%clk 0:00:19]} 21... h6 {[%clk 0:01:02.5]} 22. e5 {[%clk 0:00:18.2]}
22... Ne8 {[%clk 0:00:53.8]} 23. Bc3 {[%clk 0:00:13.7]} 23... Qd7 {[%clk
0:00:52.1]} 24. Nf5+ {[%clk 0:00:11.9]} 24... Kf7 {[%clk 0:00:52.4]} 25. Rad1
{[%clk 0:00:12.1]} 25... Qe6 {[%clk 0:00:49.9]} 26. fxg5 {[%clk 0:00:11.8]}
26... hxg5 {[%clk 0:00:49.4]} 27. h6 {[%clk 0:00:11.7]} 27... Bh8 {[%clk
0:00:48.6]} 28. Qh5+ {[%clk 0:00:11.8]} 28... Ng6 {[%clk 0:00:47.2]} 29. Rxd8
{[%clk 0:00:08.2]} 29... Rxd8 {[%clk 0:00:47.4]} 30. Bh3 {[%clk 0:00:07.4]}
30... Qc4 {[%clk 0:00:41]} 0-1

[Event "*** Qualifier 1: Titled Tuesday 3|2 Blitz"]
[Site "Chess.com"]
[Date "2017.04.04"]
[Round "2"]
[White "Indianlad"]
[Black "filali-oujda"]
[Result "1-0"]
[WhiteElo "2554"]
[BlackElo "2261"]
[TimeControl "180+2"]
[EndTime "13:23:41 PDT"]
[Termination "Indianlad won on time"]

1. d4 {[%clk 0:02:54.8]} 1... c6 {[%clk 0:03:02]} 2. e4 {[%clk 0:02:55.1]} 2...
d5 {[%clk 0:03:03.1]} 3. e5 {[%clk 0:02:51]} 3... c5 {[%clk 0:03:03]} 4. dxc5
{[%clk 0:02:50.6]} 4... Nc6 {[%clk 0:03:04.1]} 5. a3 {[%clk 0:02:44.9]} 5...
Nxe5 {[%clk 0:02:55.9]} 6. Bb5+ {[%clk 0:02:45.6]} 6... Nc6 {[%clk 0:02:53.2]}
7. b4 {[%clk 0:02:44.8]} 7... Nf6 {[%clk 0:02:51.2]} 8. Bb2 {[%clk 0:02:45.6]}
8... a5 {[%clk 0:02:47.8]} 9. Nf3 {[%clk 0:02:46.2]} 9... Bd7 {[%clk 0:02:45.1]}
10. O-O {[%clk 0:02:42.7]} 10... axb4 {[%clk 0:02:42.4]} 11. Bxc6 {[%clk
0:02:39.6]} 11... Bxc6 {[%clk 0:02:35.8]} 12. axb4 {[%clk 0:02:41.1]} 12... e6
{[%clk 0:02:36.5]} 13. Rxa8 {[%clk 0:02:40.6]} 13... Qxa8 {[%clk 0:02:35.7]} 14.
Bxf6 {[%clk 0:02:32.6]} 14... gxf6 {[%clk 0:02:30.4]} 15. Nd4 {[%clk 0:02:33.2]}
15... Be7 {[%clk 0:02:24.6]} 16. Re1 {[%clk 0:02:26.9]} 16... Qa2 {[%clk
0:02:18]} 17. b5 {[%clk 0:02:14.9]} 17... Bd7 {[%clk 0:02:18.1]} 18. c6 {[%clk
0:02:16.5]} 18... bxc6 {[%clk 0:02:18.1]} 19. bxc6 {[%clk 0:02:18.4]} 19... Bc8
{[%clk 0:02:19.7]} 20. Nc3 {[%clk 0:02:16.3]} 20... Qc4 {[%clk 0:02:18.3]} 21.
Ncb5 {[%clk 0:01:30]} 21... e5 {[%clk 0:01:33.3]} 22. Na7 {[%clk 0:01:31.1]}
22... Qa6 {[%clk 0:00:22]} 23. Nxc8 {[%clk 0:01:30.7]} 23... Qxc8 {[%clk
0:00:22]} 24. Qf3 {[%clk 0:01:28.7]} 24... exd4 {[%clk 0:00:17.9]} 25. Qxf6
{[%clk 0:01:29.1]} 25... O-O {[%clk 0:00:17.2]} 26. Rxe7 {[%clk 0:01:30.1]}
26... Qa6 {[%clk 0:00:15.3]} 27. Qg5+ {[%clk 0:01:29.8]} 27... Kh8 {[%clk
0:00:16]} 28. Qf6+ {[%clk 0:01:30.7]} 28... Kg8 {[%clk 0:00:17.3]} 29. h4 {[%clk
0:01:32.2]} 29... Qa1+ {[%clk 0:00:17.4]} 30. Kh2 {[%clk 0:01:33.6]} 30... Qc1
{[%clk 0:00:13.3]} 31. c7 {[%clk 0:01:34.4]} 31... Qxc2 {[%clk 0:00:11.3]} 32.
Qxd4 {[%clk 0:01:26.1]} 32... Rc8 {[%clk 0:00:10]} 33. Qf4 {[%clk 0:01:21.6]}
33... Qg6 {[%clk 0:00:09.8]} 34. Re3 {[%clk 0:01:16.7]} 34... Kf8 {[%clk
0:00:09.1]} 35. Qb4+ {[%clk 0:01:13.1]} 1-0

[Event "*** Qualifier 1: Titled Tuesday 3|2 Blitz"]
[Site "Chess.com"]
[Date "2017.04.04"]
[Round "2"]
[White "SmarterChess"]
[Black "Quiet_Desperation"]
[Result "0-1"]
[WhiteElo "2119"]
[BlackElo "2094"]
[TimeControl "180+2"]
[EndTime "13:23:41 PDT"]
[Termination "Quiet_Desperation won by resignation"]

1. e4 {[%clk 0:03:02]} 1... Nc6 {[%clk 0:02:58.2]} 2. Nf3 {[%clk 0:03:00.4]}
2... d6 {[%clk 0:02:58.8]} 3. Nc3 {[%clk 0:02:58.5]} 3... Nf6 {[%clk 0:02:50.9]}
4. h3 {[%clk 0:02:51]} 4... e5 {[%clk 0:02:51.1]} 5. d4 {[%clk 0:02:49.5]} 5...
exd4 {[%clk 0:02:44.7]} 6. Nxd4 {[%clk 0:02:49.9]} 6... Be7 {[%clk 0:02:43.7]}
7. Be3 {[%clk 0:02:44.5]} 7... O-O {[%clk 0:02:40.7]} 8. Be2 {[%clk 0:02:35.9]}
8... Ne5 {[%clk 0:02:35.3]} 9. O-O {[%clk 0:02:33.4]} 9... a6 {[%clk 0:02:34.4]}
10. f4 {[%clk 0:02:32]} 10... Ng6 {[%clk 0:02:32.1]} 11. Nf3 {[%clk 0:02:03.4]}
11... b5 {[%clk 0:02:21.9]} 12. a3 {[%clk 0:01:55.4]} 12... Bb7 {[%clk
0:02:21.5]} 13. Bd3 {[%clk 0:01:32.4]} 13... c5 {[%clk 0:02:18.2]} 14. e5 {[%clk
0:01:10.4]} 14... dxe5 {[%clk 0:02:12.7]} 15. Bxg6 {[%clk 0:01:11.3]} 15... hxg6
{[%clk 0:02:07.1]} 16. fxe5 {[%clk 0:01:11.2]} 16... Ne4 {[%clk 0:02:03.2]} 17.
Nxe4 {[%clk 0:00:53.4]} 17... Bxe4 {[%clk 0:02:02.3]} 18. Qe2 {[%clk 0:00:49.8]}
18... Qd5 {[%clk 0:01:54]} 19. Rad1 {[%clk 0:00:43.9]} 19... Bxf3 {[%clk
0:01:47.7]} 20. Qxf3 {[%clk 0:00:37.9]} 20... Qxe5 {[%clk 0:01:47.9]} 21. c3
{[%clk 0:00:34.1]} 21... Bg5 {[%clk 0:01:26.3]} 22. Bxg5 {[%clk 0:00:31]} 22...
Qxg5 {[%clk 0:01:27.2]} 23. Rd5 {[%clk 0:00:32.7]} 23... Qe7 {[%clk 0:01:27.3]}
24. Rfd1 {[%clk 0:00:25.9]} 24... Rad8 {[%clk 0:01:24.6]} 25. Kh2 {[%clk
0:00:26.9]} 25... Rxd5 {[%clk 0:01:24.4]} 26. Qxd5 {[%clk 0:00:26.7]} 26... Re8
{[%clk 0:01:17.3]} 27. b4 {[%clk 0:00:19.4]} 27... c4 {[%clk 0:01:12.2]} 28. Qd6
{[%clk 0:00:16.9]} 28... Qxd6+ {[%clk 0:01:05.6]} 29. Rxd6 {[%clk 0:00:18.8]}
29... Ra8 {[%clk 0:01:06.3]} 30. Kg3 {[%clk 0:00:19.1]} 30... Kf8 {[%clk
0:01:07.6]} 31. Kf4 {[%clk 0:00:19.7]} 31... Ke7 {[%clk 0:01:08.7]} 32. Rb6
{[%clk 0:00:20.5]} 32... Ra7 {[%clk 0:01:03.5]} 33. g4 {[%clk 0:00:21.2]} 33...
f6 {[%clk 0:01:04.3]} 34. Ke4 {[%clk 0:00:22.2]} 34... Kf7 {[%clk 0:01:02.3]}
35. Kd5 {[%clk 0:00:22.2]} 35... g5 {[%clk 0:01:02.5]} 36. Kc5 {[%clk
0:00:22.4]} 36... Rc7+ {[%clk 0:00:57.3]} 37. Kd6 {[%clk 0:00:23.4]} 37... Ra7
{[%clk 0:00:58]} 38. Kc6 {[%clk 0:00:22.7]} 38... g6 {[%clk 0:00:57.3]} 39. Kc5
{[%clk 0:00:21.8]} 39... f5 {[%clk 0:00:56.3]} 40. gxf5 {[%clk 0:00:21.6]} 40...
gxf5 {[%clk 0:00:58.2]} 41. Kd5 {[%clk 0:00:23.2]} 41... Re7 {[%clk 0:00:57.1]}
42. Rxa6 {[%clk 0:00:23.7]} 42... f4 {[%clk 0:00:58]} 43. Rh6 {[%clk 0:00:24.3]}
43... f3 {[%clk 0:00:56.2]} 44. Rh7+ {[%clk 0:00:23.9]} 44... Kf6 {[%clk
0:00:55.8]} 45. Rh8 {[%clk 0:00:25.3]} 45... f2 {[%clk 0:00:55.3]} 46. Rf8+
{[%clk 0:00:25.5]} 46... Rf7 {[%clk 0:00:56.5]} 47. Rxf7+ {[%clk 0:00:24.2]}
47... Kxf7 {[%clk 0:00:57.8]} 0-1

[Event "*** Qualifier 1: Titled Tuesday 3|2 Blitz"]
[Site "Chess.com"]
[Date "2017.04.04"]
[Round "2"]
[White "yian123"]
[Black "keisyzrk"]
[Result "1-0"]
[WhiteElo "2388"]
[BlackElo "2237"]
[TimeControl "180+2"]
[EndTime "13:23:45 PDT"]
[Termination "yian123 won by resignation"]

1. e4 {[%clk 0:03:02]} 1... e5 {[%clk 0:03:00.3]} 2. Nf3 {[%clk 0:03:02.7]} 2...
Nc6 {[%clk 0:03:01.3]} 3. Bb5 {[%clk 0:03:04.2]} 3... a6 {[%clk 0:03:02.1]} 4.
Ba4 {[%clk 0:03:05.3]} 4... Nge7 {[%clk 0:03:02]} 5. c3 {[%clk 0:03:04.3]} 5...
g6 {[%clk 0:03:02.3]} 6. d4 {[%clk 0:03:05.4]} 6... exd4 {[%clk 0:03:02.4]} 7.
cxd4 {[%clk 0:03:07.3]} 7... b5 {[%clk 0:03:03.9]} 8. Bc2 {[%clk 0:03:08]} 8...
Bg7 {[%clk 0:03:03.4]} 9. d5 {[%clk 0:03:08.8]} 9... Na5 {[%clk 0:03:04.8]} 10.
Bd2 {[%clk 0:03:09.9]} 10... Nc4 {[%clk 0:02:51.9]} 11. Bc3 {[%clk 0:03:10.6]}
11... Nxb2 {[%clk 0:02:04.8]} 12. Qc1 {[%clk 0:02:58.4]} 12... Bxc3+ {[%clk
0:02:05]} 13. Nxc3 {[%clk 0:03:00.3]} 13... Nc4 {[%clk 0:02:06.6]} 14. Bd3
{[%clk 0:02:58.1]} 14... d6 {[%clk 0:01:48.9]} 15. Bxc4 {[%clk 0:02:51.9]} 15...
bxc4 {[%clk 0:01:49.8]} 16. O-O {[%clk 0:02:52.6]} 16... Bg4 {[%clk 0:01:43.8]}
17. Nd2 {[%clk 0:02:53.1]} 17... O-O {[%clk 0:01:41.2]} 18. Nxc4 {[%clk
0:02:53.3]} 18... f5 {[%clk 0:01:41.7]} 19. f3 {[%clk 0:02:49]} 19... Bh5 {[%clk
0:01:35.8]} 20. exf5 {[%clk 0:02:48.6]} 20... gxf5 {[%clk 0:01:37.2]} 21. Re1
{[%clk 0:02:46.3]} 21... Bg6 {[%clk 0:01:36]} 22. Qf4 {[%clk 0:02:34.7]} 22...
Qd7 {[%clk 0:01:36.2]} 23. Na5 {[%clk 0:02:31.8]} 23... Rae8 {[%clk 0:01:36.4]}
24. Nb3 {[%clk 0:02:32.6]} 24... Bf7 {[%clk 0:01:28.8]} 25. Qg5+ {[%clk
0:02:21.5]} 25... Ng6 {[%clk 0:01:29.5]} 26. Nd4 {[%clk 0:02:19.5]} 26... f4
{[%clk 0:01:20]} 27. Nc6 {[%clk 0:01:51.9]} 27... Rxe1+ {[%clk 0:01:10.1]} 28.
Rxe1 {[%clk 0:01:51.9]} 28... Re8 {[%clk 0:01:11.5]} 29. Re4 {[%clk 0:01:40.7]}
29... Kh8 {[%clk 0:00:59.5]} 30. h4 {[%clk 0:01:26.6]} 30... Ne5 {[%clk
0:00:17.6]} 31. Qf6+ {[%clk 0:01:18.5]} 31... Kg8 {[%clk 0:00:18.3]} 32. Nxe5
{[%clk 0:01:06.6]} 32... dxe5 {[%clk 0:00:19.5]} 33. Rxe5 {[%clk 0:01:04.7]}
33... Rxe5 {[%clk 0:00:20.7]} 34. Qxe5 {[%clk 0:01:06.6]} 34... Qd6 {[%clk
0:00:22.3]} 35. Qxd6 {[%clk 0:00:40.6]} 35... cxd6 {[%clk 0:00:24.2]} 36. Ne4
{[%clk 0:00:40.5]} 36... Bxd5 {[%clk 0:00:23.5]} 37. Nf6+ {[%clk 0:00:41.2]}
37... Kf7 {[%clk 0:00:22.1]} 38. Nxd5 {[%clk 0:00:43.1]} 38... Ke6 {[%clk
0:00:23.1]} 39. Nxf4+ {[%clk 0:00:44.7]} 39... Ke5 {[%clk 0:00:24.5]} 40. Ne2
{[%clk 0:00:44.6]} 1-0

[Event "*** Qualifier 1: Titled Tuesday 3|2 Blitz"]
[Site "Chess.com"]
[Date "2017.04.04"]
[Round "2"]
[White "larso"]
[Black "ruvat"]
[Result "1-0"]
[WhiteElo "2394"]
[BlackElo "2239"]
[TimeControl "180+2"]
[EndTime "13:23:53 PDT"]
[Termination "larso won on time"]

1. d4 {[%clk 0:03:02]} 1... d6 {[%clk 0:02:59.3]} 2. e4 {[%clk 0:03:02.3]} 2...
Nf6 {[%clk 0:02:54.8]} 3. Nc3 {[%clk 0:03:03.1]} 3... g6 {[%clk 0:02:55.2]} 4.
f4 {[%clk 0:03:03.6]} 4... Bg7 {[%clk 0:02:55.6]} 5. Bd3 {[%clk 0:03:05.1]} 5...
O-O {[%clk 0:02:55.3]} 6. Nf3 {[%clk 0:03:05.9]} 6... Na6 {[%clk 0:02:56.2]} 7.
e5 {[%clk 0:02:35]} 7... Ng4 {[%clk 0:02:55.1]} 8. h3 {[%clk 0:02:11.1]} 8...
Nh6 {[%clk 0:02:55.6]} 9. O-O {[%clk 0:02:11.5]} 9... c5 {[%clk 0:02:52.6]} 10.
d5 {[%clk 0:02:10.6]} 10... Nf5 {[%clk 0:01:40.2]} 11. Ne4 {[%clk 0:01:37.4]}
11... dxe5 {[%clk 0:01:25]} 12. Bxa6 {[%clk 0:01:32.5]} 12... bxa6 {[%clk
0:01:22.6]} 13. fxe5 {[%clk 0:01:33.3]} 13... Bb7 {[%clk 0:00:55.6]} 14. c4
{[%clk 0:01:32.7]} 14... Qb6 {[%clk 0:00:47.6]} 15. b3 {[%clk 0:01:27.7]} 15...
Rad8 {[%clk 0:00:29.9]} 16. Re1 {[%clk 0:01:17.3]} 16... e6 {[%clk 0:00:26.6]}
17. d6 {[%clk 0:01:17.1]} 17... Bxe4 {[%clk 0:00:19.1]} 18. Rxe4 {[%clk
0:01:16.5]} 18... Nxd6 {[%clk 0:00:19.9]} 19. exd6 {[%clk 0:00:12.8]} 19... Bxa1
{[%clk 0:00:14.7]} 20. Bg5 {[%clk 0:00:13.1]} 20... Qxd6 {[%clk 0:00:09.5]} 21.
Qxa1 {[%clk 0:00:13.6]} 21... Qd1+ {[%clk 0:00:08.8]} 22. Qxd1 {[%clk
0:00:13.9]} 22... Rxd1+ {[%clk 0:00:10.7]} 23. Kf2 {[%clk 0:00:15.8]} 23... f6
{[%clk 0:00:10.6]} 24. Be3 {[%clk 0:00:16.5]} 24... e5 {[%clk 0:00:08.2]} 25.
Bxc5 {[%clk 0:00:17.3]} 25... Rf7 {[%clk 0:00:04.1]} 26. Re2 {[%clk 0:00:18.1]}
26... Rfd7 {[%clk 0:00:04.1]} 27. Be3 {[%clk 0:00:18.8]} 27... Kf7 {[%clk
0:00:04.6]} 28. Nd2 {[%clk 0:00:20]} 28... Ra1 {[%clk 0:00:04.4]} 29. Ne4 {[%clk
0:00:21.3]} 29... Rdd1 {[%clk 0:00:03.4]} 30. Nc5 {[%clk 0:00:23.2]} 30... Rf1+
{[%clk 0:00:02.8]} 31. Kg3 {[%clk 0:00:24.6]} 31... f5 {[%clk 0:00:01.8]} 32.
Bg5 {[%clk 0:00:24.9]} 1-0